bitfinex/quotes_BTCUSD_20220226
["timestamp","ask_amount","ask_price","bid_price","bid_amount"]
[1645877025334,0.37772,38938.0,38933.0,0.00424587]
[1645877025734,0.19402862,38939.0,38933.0,0.00424587]
[1645877025936,0.18376862,38939.0,38933.0,0.00424587]
[1645877027136,0.19402862,38939.0,38933.0,0.00424587]
[1645877027535,0.19402862,38939.0,38933.0,0.00206709]
[1645877027735,0.19402862,38939.0,38930.0,0.09468982]
[1645877027935,0.19402862,38939.0,38930.0,0.09496198]
[1645877027936,0.19502862,38939.0,38930.0,0.09496198]
[1645877028383,0.14910811,38934.0,38930.0,0.09496198]
[1645877028584,0.16404412,38935.0,38934.0,0.29821621]
[1645877028797,0.54176412,38935.0,38934.0,0.29821621]
[1645877029285,0.54170412,38935.0,38934.0,0.29821621]
[1645877029989,0.55296412,38935.0,38934.0,0.29821621]
[1645877030384,0.55296412,38935.0,38934.0,0.30255518]
[1645877030586,1.47486422,38935.0,38934.0,0.30255518]
[1645877030785,1.47486422,38935.0,38934.0,0.00433897]
[1645877030786,1.50053422,38935.0,38934.0,0.00433897]
[1645877031186,1.55093422,38935.0,38934.0,0.00433897]
[1645877031586,1.55082662,38935.0,38934.0,0.00433897]
[1645877033138,1.55082662,38935.0,38924.0,0.001]
[1645877033139,1.95847,38933.0,38924.0,0.001]
[1645877033339,1.18619,38929.0,38924.0,0.001]
[1645877033536,0.80847,38925.0,38924.0,0.001]
[1645877033734,1.63623,38925.0,38924.0,0.001]
[1645877033935,1.7753301,38925.0,38924.0,0.001]
[1645877034134,1.83165203,38925.0,38924.0,0.001]
[1645877034940,1.45598203,38925.0,38924.0,0.001]
[1645877035141,0.5175,38925.0,38924.0,0.001]
[1645877035337,0.72912,38925.0,38924.0,0.001]
[1645877035591,0.41752534,38925.0,38924.0,0.001]
[1645877036090,1.50132534,38925.0,38924.0,0.001]
[1645877036289,1.50121774,38925.0,38924.0,0.001]
[1645877036491,1.20121774,38925.0,38924.0,0.001]
[1645877036688,0.54927975,38925.0,38924.0,0.001]
[1645877037090,1.63207975,38925.0,38924.0,0.001]
[1645877037290,1.63107975,38925.0,38924.0,0.001]
[1645877038192,1.63207975,38925.0,38924.0,0.001]
[1645877038691,1.79679544,38925.0,38924.0,0.001]
[1645877039335,1.84679544,38925.0,38924.0,0.001]
[1645877039837,2.04559544,38925.0,38924.0,0.001]
[1645877040242,2.24539544,38925.0,38924.0,0.001]
[1645877040437,3.99248816,38925.0,38924.0,0.001]
[1645877040635,3.96681816,38925.0,38924.0,0.001]
[1645877041040,3.99248816,38925.0,38924.0,0.001]
[1645877041238,3.96681816,38925.0,38924.0,0.001]
[1645877041439,3.18401816,38925.0,38924.0,0.001]
[1645877041641,3.71701816,38925.0,38924.0,0.001]
[1645877041841,2.51506741,38925.0,38924.0,0.001]
[1645877042039,2.13733841,38925.0,38924.0,0.001]
[1645877042239,1.94689272,38925.0,38924.0,0.001]
[1645877042440,2.32456172,38925.0,38924.0,0.001]
[1645877043290,2.08597651,38925.0,38924.0,0.001]
[1645877043892,2.62131641,38925.0,38924.0,0.001]
[1645877044093,2.24458741,38925.0,38924.0,0.001]
[1645877044294,2.24458741,38925.0,38920.0,0.01727898]
[1645877044495,0.064288,38923.0,38910.0,0.1213]
[1645877044694,0.3,38922.0,38910.0,0.1213]
[1645877044995,0.3,38922.0,38917.0,0.00111017]
[1645877045193,1.0828,38922.0,38917.0,0.00111017]
[1645877045397,0.16377619,38918.0,38917.0,0.00111017]
[1645877045594,0.54150519,38918.0,38917.0,0.00111017]
[1645877045793,0.54150519,38918.0,38908.0,0.14573404]
[1645877045995,0.377729,38917.0,38908.0,0.14573404]
[1645877047040,0.377729,38917.0,38908.0,0.44573404]
[1645877047243,0.377729,38917.0,38908.0,0.001]
[1645877047839,0.377729,38917.0,38908.0,0.301]
[1645877048240,0.377729,38916.0,38908.0,0.301]
[1645877048540,0.1205,38920.0,38908.0,0.301]
[1645877048541,0.377729,38917.0,38914.0,0.00139518]
[1645877048739,0.1205,38920.0,38912.0,0.00013913]
[1645877048939,0.377729,38919.0,38912.0,0.00013913]
[1645877049741,0.29614845,38920.0,38912.0,0.00013913]
[1645877049941,0.00203042,38918.0,38912.0,0.00013913]
[1645877050242,0.00195092,38918.0,38912.0,0.00013913]
[1645877050608,0.00195092,38918.0,38913.0,0.13478626]
[1645877050795,0.377729,38917.0,38913.0,0.13478626]
[1645877051095,0.00195092,38918.0,38913.0,0.13478626]
[1645877051698,0.00195092,38918.0,38915.0,0.1]
[1645877051997,9.2e-07,38918.0,38917.0,0.477698]
[1645877052194,9.2e-07,38918.0,38917.0,0.829098]
[1645877052995,9.2e-07,38918.0,38917.0,0.4514]
[1645877053595,9.2e-07,38918.0,38917.0,0.829129]
[1645877054095,9.2e-07,38918.0,38917.0,0.833129]
[1645877054935,0.00029525,38928.0,38920.0,0.02567]
[1645877055135,0.00029525,38928.0,38923.0,0.321419]
[1645877055436,0.00187275,38929.0,38926.0,0.15092838]
[1645877055635,0.00029528,38928.0,38927.0,0.377729]
[1645877056037,0.00029528,38928.0,38926.0,0.377729]
[1645877056236,0.00029528,38928.0,38925.0,0.0514]
[1645877056636,0.00187275,38929.0,38925.0,0.0514]
[1645877056837,0.00029529,38928.0,38925.0,0.0514]
[1645877057537,0.00023529,38928.0,38925.0,0.0514]
[1645877057738,0.00187275,38929.0,38925.0,0.0514]
[1645877057937,0.00187275,38929.0,38920.0,0.02567]
[1645877058190,0.00187275,38929.0,38920.0,0.32767]
[1645877058191,0.00145371,38929.0,38920.0,0.32767]
[1645877058395,0.00145371,38929.0,38921.0,0.0514]
[1645877058589,0.00145371,38929.0,38921.0,0.0364]
[1645877059991,0.00145371,38929.0,38921.0,0.0389496]
[1645877060191,0.01171371,38929.0,38921.0,0.0389496]
[1645877061091,0.31171371,38929.0,38921.0,0.003]
[1645877061297,0.31171371,38929.0,38914.0,0.2475]
[1645877061298,0.377729,38923.0,38914.0,0.2475]
[1645877061596,0.16867721,38924.0,38914.0,0.1975]
[1645877061839,0.16867721,38924.0,38912.0,0.00013913]
[1645877062244,0.16867721,38924.0,38912.0,0.17410751]
[1645877062839,0.16867721,38924.0,38912.0,0.16910751]
[1645877063445,0.3,38923.0,38912.0,0.16910751]
[1645877063743,0.01026,38922.0,38912.0,0.16910751]
[1645877063944,0.01026,38923.0,38913.0,0.3]
[1645877064342,0.01026,38923.0,38918.0,0.17469385]
[1645877064543,0.01026,38925.0,38918.0,0.17469385]
[1645877064745,0.00017085,38927.0,38919.0,0.3]
[1645877065143,0.00166957,38928.0,38919.0,0.3]
[1645877065345,0.00029545,38927.0,38919.0,0.3]
[1645877065585,0.00029545,38927.0,38918.0,0.17469385]
[1645877066187,0.00166957,38928.0,38918.0,0.17469385]
[1645877066389,0.13673842,38926.0,38918.0,0.17469385]
[1645877066888,0.14699842,38926.0,38918.0,0.17469385]
[1645877067687,0.13673842,38926.0,38918.0,0.17469385]
[1645877068089,0.01055545,38927.0,38918.0,0.17669385]
[1645877068788,0.01026,38927.0,38918.0,0.17469385]
[1645877068989,0.01055545,38927.0,38918.0,0.17469385]
[1645877069641,0.01055545,38927.0,38918.0,0.17251507]
[1645877069840,0.01055545,38927.0,38918.0,0.1704378]
[1645877069841,0.01026,38927.0,38918.0,0.1704378]
[1645877070040,0.00166957,38928.0,38918.0,0.1704378]
[1645877070239,0.00029545,38927.0,38918.0,0.1704378]
[1645877071147,0.00166957,38928.0,38918.0,0.1704378]
[1645877071345,0.00017071,38927.0,38919.0,0.377729]
[1645877071542,0.00017071,38927.0,38918.0,0.1704378]
[1645877072341,0.30166957,38928.0,38918.0,0.1704378]
[1645877072542,0.00017071,38927.0,38918.0,0.1704378]
[1645877073388,0.30166957,38928.0,38918.0,0.1704378]
[1645877073589,0.01026,38927.0,38918.0,0.1704378]
[1645877073793,0.01055519,38927.0,38918.0,0.1704378]
[1645877074388,0.01055519,38927.0,38918.0,0.1654378]
[1645877074589,0.01026,38927.0,38918.0,0.1654378]
[1645877074989,0.01055519,38927.0,38918.0,0.1654378]
[1645877075792,0.01026,38927.0,38918.0,0.1654378]
[1645877076193,0.01055519,38927.0,38918.0,0.1674378]
[1645877076397,0.00029519,38927.0,38919.0,0.377729]
[1645877077036,0.00166957,38928.0,38924.0,0.16131882]
[1645877077437,0.00029519,38927.0,38917.0,0.00029527]
[1645877077635,0.00029519,38927.0,38918.0,0.377729]
[1645877077837,0.00029519,38927.0,38917.0,0.00029527]
[1645877078336,0.00166957,38928.0,38923.0,0.16944052]
[1645877078538,0.0002833,38927.0,38923.0,0.16944052]
[1645877079137,0.0002833,38927.0,38917.0,0.00028337]
[1645877079538,0.00166957,38928.0,38915.0,0.377729]
[1645877079737,0.0002833,38927.0,38917.0,0.00028337]
[1645877079938,0.55,38926.0,38916.0,0.377729]
[1645877080139,0.55,38926.0,38919.0,0.13729655]
[1645877080586,0.85,38926.0,38913.0,0.377729]
[1645877080990,0.98900538,38926.0,38912.0,0.1177]
[1645877081187,0.01026,38925.0,38912.0,0.1177]
[1645877081591,0.01026,38925.0,38914.0,0.15885787]
[1645877081789,0.14926538,38925.0,38914.0,0.15885787]
[1645877081989,0.01026,38925.0,38915.0,0.00011303]
[1645877082990,0.01026,38925.0,38914.0,0.16185787]
[1645877083388,0.01026,38925.0,38915.0,0.00011303]
[1645877083592,0.16125126,38921.0,38915.0,0.00011303]
[1645877083788,0.25776126,38921.0,38915.0,0.00011303]
[1645877084192,0.25876126,38921.0,38915.0,0.00011303]
[1645877084442,0.25876126,38921.0,38915.0,0.00028377]
[1645877084744,0.26902126,38921.0,38915.0,0.00028377]
[1645877084941,0.3,38920.0,38915.0,0.00028377]
[1645877085141,0.387989,38919.0,38915.0,0.00028377]
[1645877085541,0.377729,38917.0,38911.0,0.0111]
[1645877085740,0.377729,38917.0,38915.0,0.00027995]
[1645877086243,0.687989,38916.0,38915.0,0.00027995]
[1645877086441,0.377729,38916.0,38915.0,0.00027995]
[1645877086648,0.677729,38916.0,38911.0,0.0131]
[1645877086850,0.80847,38914.0,38911.0,0.0131]
[1645877087044,1.160529,38912.0,38911.0,0.0131]
[1645877087244,1.553939,38912.0,38911.0,0.0131]
[1645877087443,1.553939,38912.0,38911.0,0.0111]
[1645877087643,1.44506544,38912.0,38911.0,0.0111]
[1645877087944,0.66226544,38912.0,38911.0,0.0111]
[1645877088192,0.62252544,38912.0,38911.0,0.0111]
[1645877088388,0.76483477,38912.0,38911.0,0.0111]
[1645877088592,0.62252544,38912.0,38911.0,0.0111]
[1645877088789,0.92252544,38912.0,38911.0,0.0111]
[1645877088991,1.78239544,38912.0,38911.0,0.0111]
[1645877089189,1.84670644,38912.0,38911.0,0.0111]
[1645877089492,1.98901577,38912.0,38911.0,0.0111]
[1645877089688,0.80847,38910.0,38904.0,0.02298013]
[1645877089893,1.95847,38906.0,38895.0,0.0011]
[1645877090093,0.80847,38904.0,38895.0,0.0011]
[1645877090292,0.80847,38900.0,38895.0,0.0011]
[1645877090489,0.80847,38896.0,38895.0,0.0011]
[1645877090689,1.527729,38895.0,38885.0,0.52082122]
[1645877090891,0.3,38896.0,38895.0,0.27947678]
[1645877091092,0.677729,38896.0,38895.0,0.27947678]
[1645877091492,0.742065,38896.0,38895.0,0.27947678]
[1645877091851,0.442065,38896.0,38895.0,0.27947678]
[1645877092050,0.377729,38896.0,38895.0,0.27947678]
[1645877092646,0.01127,38901.0,38895.0,0.27947678]
[1645877092647,0.001,38901.0,38895.0,0.27947678]
[1645877092846,0.001,38901.0,38896.0,0.377729]
[1645877093045,0.001,38901.0,38897.0,0.15770587]
[1645877093446,0.0514,38903.0,38897.0,0.15770587]
[1645877093644,0.0514,38903.0,38895.0,0.27947678]
[1645877093845,0.26021126,38902.0,38895.0,0.27947678]
[1645877094049,0.0013872,38896.0,38895.0,0.27947678]
[1645877095446,0.3791162,38896.0,38895.0,0.27947678]
[1645877097097,0.4432862,38896.0,38895.0,0.27947678]
[1645877097694,0.4535562,38896.0,38895.0,0.27947678]
[1645877097894,1.527729,38895.0,38894.0,0.00012274]
[1645877098095,1.224609,38895.0,38894.0,0.00012274]
[1645877098297,2.410808,38895.0,38894.0,0.00012274]
[1645877098499,2.512208,38895.0,38894.0,0.00012274]
[1645877098696,2.512208,38895.0,38885.0,0.0021]
[1645877098697,0.80847,38891.0,38885.0,0.0021]
[1645877098899,0.15330245,38889.0,38885.0,0.0021]
[1645877099095,0.3514,38888.0,38885.0,0.0021]
[1645877099343,0.0514,38888.0,38885.0,0.0021]
[1645877099544,0.0514,38894.0,38885.0,0.0021]
[1645877099743,0.377729,38892.0,38885.0,0.0021]
[1645877100146,0.3,38891.0,38885.0,0.0021]
[1645877100344,0.387999,38890.0,38885.0,0.0021]
[1645877100545,0.687999,38890.0,38885.0,0.0021]
[1645877100944,0.01027,38890.0,38885.0,0.0021]
[1645877101145,0.377729,38889.0,38885.0,0.0021]
[1645877101346,0.31027,38890.0,38885.0,0.0021]
[1645877101545,0.01027,38890.0,38885.0,0.0021]
[1645877102146,0.377729,38889.0,38885.0,0.0021]
[1645877102548,0.377729,38889.0,38886.0,0.0002944]
[1645877103405,0.01127,38890.0,38886.0,0.0002944]
[1645877103601,0.01127,38890.0,38885.0,0.0021]
[1645877103801,0.377729,38889.0,38886.0,0.0002944]
[1645877104000,0.377729,38888.0,38886.0,0.0002944]
[1645877104200,0.377729,38889.0,38886.0,0.0002944]
[1645877104800,0.00237808,38890.0,38885.0,0.0021]
[1645877105107,0.00237808,38890.0,38886.0,0.0002944]
[1645877105303,0.00237808,38890.0,38889.0,0.12805774]
[1645877105501,0.00137808,38890.0,38889.0,0.12805774]
[1645877105704,0.00137808,38890.0,38880.0,0.00427777]
[1645877105705,1.95847,38887.0,38880.0,0.00427777]
[1645877105907,1.95847,38887.0,38880.0,0.0031]
[1645877105908,0.80847,38885.0,38880.0,0.0031]
[1645877106203,1.186199,38881.0,38880.0,0.0031]
[1645877106402,1.547869,38881.0,38880.0,0.0031]
[1645877106702,1.247869,38881.0,38880.0,0.0031]
[1645877106948,1.347869,38881.0,38880.0,0.0031]
[1645877107147,3.61312591,38881.0,38880.0,0.0031]
[1645877107547,2.83032591,38881.0,38880.0,0.0031]
[1645877107753,2.79438591,38881.0,38880.0,0.0031]
[1645877108053,2.31665691,38881.0,38880.0,0.0031]
[1645877108251,2.26525691,38881.0,38880.0,0.0031]
[1645877108448,0.1998,38884.0,38880.0,0.0031]
[1645877108649,0.001,38886.0,38880.0,0.0031]
[1645877109451,0.2001,38888.0,38880.0,0.0031]
[1645877109650,0.2001,38888.0,38881.0,0.00028941]
[1645877109851,0.20147447,38888.0,38881.0,0.00028941]
[1645877110452,0.00137447,38888.0,38881.0,0.00028941]
[1645877110695,0.00137447,38888.0,38887.0,0.14776398]
[1645877111794,2.14074638,38888.0,38887.0,0.1455852]
[1645877111995,2.14074638,38888.0,38887.0,0.14350793]
[1645877112200,0.00137447,38888.0,38887.0,0.52223693]
[1645877112797,0.00137447,38888.0,38887.0,0.82223693]
[1645877113004,0.00137447,38888.0,38887.0,0.92223693]
[1645877113200,0.00633285,38888.0,38887.0,0.97363693]
[1645877113404,0.00633285,38888.0,38887.0,0.97263693]
[1645877113600,0.00633285,38888.0,38887.0,0.87263693]
[1645877115169,0.00017214,38901.0,38889.0,0.0643077]
[1645877115470,0.00017214,38901.0,38891.0,0.377729]
[1645877115672,0.1974,38911.0,38893.0,0.396276]
[1645877115673,0.01027,38910.0,38893.0,0.396276]
[1645877115870,0.00028956,38901.0,38893.0,0.747676]
[1645877116171,0.00028956,38901.0,38893.0,0.29348301]
[1645877116767,0.01027,38908.0,38893.0,0.19348301]
[1645877116968,0.20957394,38908.0,38893.0,0.19348301]
[1645877117167,0.00028956,38901.0,38893.0,0.19348301]
[1645877117767,0.00028956,38901.0,38893.0,0.49348301]
[1645877117968,0.01027,38910.0,38893.0,0.87121201]
[1645877118196,0.01458114,38894.0,38893.0,0.49348301]
[1645877118587,0.01458114,38894.0,38893.0,0.87121201]
[1645877118789,0.01458114,38894.0,38893.0,1.02121201]
[1645877118988,0.01458114,38894.0,38893.0,1.07121201]
[1645877120197,0.00028956,38901.0,38896.0,0.02567]
[1645877120396,0.01027,38910.0,38899.0,0.02567]
[1645877120595,0.1974,38911.0,38902.0,0.477625]
[1645877120901,0.01027,38914.0,38912.0,0.15192016]
[1645877121099,0.1,38916.0,38912.0,0.15192016]
[1645877121100,0.01026,38916.0,38912.0,0.15192016]
[1645877121497,0.15719643,38918.0,38912.0,0.15192016]
[1645877121962,0.00026641,38916.0,38912.0,0.15192016]
[1645877122159,0.00026641,38916.0,38908.0,0.0514]
[1645877122760,0.15719643,38918.0,38908.0,0.0514]
[1645877123260,0.00026642,38914.0,38908.0,0.20542125]
[1645877124060,0.14693643,38918.0,38909.0,0.3]
[1645877124262,0.00026642,38913.0,38910.0,0.377729]
[1645877125162,0.14693643,38918.0,38910.0,0.177729]
[1645877125363,0.00026642,38913.0,38909.0,0.32567]
[1645877125587,0.00026642,38913.0,38910.0,0.377772]
[1645877125794,0.00026642,38913.0,38908.0,0.0514]
[1645877126390,0.14450358,38918.0,38908.0,0.0514]
[1645877126590,0.14450358,38918.0,38905.0,0.003]
[1645877126790,0.00026776,38912.0,38905.0,0.003]
[1645877127196,0.388042,38911.0,38905.0,0.003]
[1645877127391,0.388042,38911.0,38901.0,0.05]
[1645877127593,0.58605412,38911.0,38901.0,0.05]
[1645877127792,0.58605412,38911.0,38896.0,0.1958]
[1645877127793,0.388042,38911.0,38896.0,0.1958]
[1645877127992,0.388042,38911.0,38897.0,0.1412805]
[1645877127993,0.15782081,38909.0,38897.0,0.1412805]
[1645877128192,0.388042,38908.0,38897.0,0.1412805]
[1645877128794,0.01027,38908.0,38897.0,0.1412805]
[1645877129092,0.00026778,38904.0,38897.0,0.1412805]
[1645877129938,0.01027,38908.0,38897.0,0.1412805]
[1645877130136,0.377772,38907.0,38897.0,0.1412805]
[1645877130336,0.0002677,38902.0,38897.0,0.1412805]
[1645877131241,0.01027,38910.0,38897.0,0.1412805]
[1645877131439,0.0002677,38901.0,38897.0,0.1412805]
[1645877132539,0.377772,38909.0,38897.0,0.1412805]
[1645877132739,0.0002677,38901.0,38897.0,0.13910172]
[1645877132942,0.14619,38902.0,38889.0,0.3504]
[1645877133203,0.14619,38902.0,38884.0,0.19016782]
[1645877133204,0.377772,38900.0,38884.0,0.00026782]
[1645877133402,0.01027,38899.0,38884.0,0.00026782]
[1645877133601,0.14619,38902.0,38883.0,0.3]
[1645877133602,0.01027,38901.0,38883.0,0.3]
[1645877133804,0.14842462,38901.0,38889.0,0.13382977]
[1645877134002,0.17409462,38901.0,38889.0,0.13382977]
[1645877134201,0.377772,38900.0,38889.0,0.13382977]
[1645877134403,0.01027,38899.0,38889.0,0.13382977]
[1645877134605,2.13229219,38897.0,38889.0,0.13382977]
[1645877135001,2.13229219,38897.0,38892.0,0.0001179]
[1645877135403,2.13229219,38897.0,38895.0,0.15634631]
[1645877136202,1.55281525,38897.0,38896.0,0.377772]
[1645877136407,1.55281525,38897.0,38895.0,0.15634631]
[1645877136840,1.55281525,38897.0,38892.0,0.0031179]
[1645877137043,1.55281525,38897.0,38892.0,0.0001179]
[1645877137238,1.55281525,38897.0,38885.0,0.3]
[1645877137439,1.55281525,38897.0,38892.0,0.00028964]
[1645877138439,1.55281525,38897.0,38889.0,0.19435591]
[1645877138741,1.55281525,38897.0,38892.0,0.00028964]
[1645877139639,1.55281525,38897.0,38889.0,0.19435591]
[1645877139843,1.55281525,38897.0,38892.0,0.00028964]
[1645877140039,1.55281525,38897.0,38892.0,0.00228964]
[1645877140893,1.55281525,38897.0,38892.0,0.002]
[1645877141095,1.55281525,38897.0,38892.0,0.00228964]
[1645877141293,1.55281525,38897.0,38892.0,0.00028964]
[1645877141992,1.55281525,38897.0,38892.0,0.002]
[1645877142193,1.55281525,38897.0,38895.0,0.1668852]
[1645877143594,0.00028956,38903.0,38895.0,0.1668852]
[1645877143794,0.01027,38902.0,38895.0,0.1668852]
[1645877143993,0.001,38897.0,38895.0,0.1668852]
[1645877145239,0.388052,38906.0,38895.0,0.1668852]
[1645877145439,0.377772,38905.0,38895.0,0.1668852]
[1645877145640,0.009775,38904.0,38895.0,0.1668852]
[1645877145840,1.9483932,38906.0,38895.0,0.1668852]
[1645877146042,0.13486189,38905.0,38895.0,0.1668852]
[1645877146240,0.008765,38904.0,38895.0,0.1668852]
[1645877147042,0.008765,38904.0,38897.0,0.0001181]
[1645877148092,0.00809159,38904.0,38895.0,0.1618852]
[1645877148296,0.001,38904.0,38897.0,0.0001181]
[1645877149194,0.14513189,38905.0,38895.0,0.1618852]
[1645877149399,0.14542146,38905.0,38897.0,0.00028963]
[1645877149996,0.14642146,38905.0,38897.0,0.00028963]
[1645877150396,0.14613189,38905.0,38895.0,0.1618852]
[1645877150596,0.14613189,38905.0,38897.0,0.00028963]
[1645877150796,0.14642146,38905.0,38897.0,0.00028963]
[1645877151197,0.14542146,38905.0,38897.0,0.00028963]
[1645877151598,0.14513189,38905.0,38895.0,0.1618852]
[1645877151840,0.14542146,38905.0,38897.0,0.00028963]
[1645877152049,0.14542146,38905.0,38897.0,0.00128963]
[1645877152243,0.14542146,38905.0,38901.0,0.14922017]
[1645877152643,0.13515146,38905.0,38901.0,0.14922017]
[1645877152843,0.13486189,38905.0,38901.0,0.14922017]
[1645877153042,1.9391232,38906.0,38901.0,0.14922017]
[1645877153245,0.45926386,38905.0,38901.0,0.14922017]
[1645877153444,0.45926386,38905.0,38901.0,0.13429816]
[1645877153846,0.45926386,38905.0,38901.0,0.13211938]
[1645877154045,0.45897428,38905.0,38901.0,0.13004211]
[1645877154249,0.32385242,38904.0,38897.0,0.00011814]
[1645877154446,0.7,38902.0,38890.0,0.04559077]
[1645877154649,0.7,38902.0,38889.0,0.06027]
[1645877154846,0.7,38902.0,38889.0,0.01027]
[1645877155250,0.62385242,38903.0,38897.0,0.12679372]
[1645877155447,0.32385242,38904.0,38897.0,0.12679372]
[1645877155692,0.32385242,38903.0,38897.0,0.12679372]
[1645877155896,0.32385242,38904.0,38897.0,0.12679372]
[1645877156093,0.32585242,38904.0,38897.0,0.12679372]
[1645877156294,0.62385242,38903.0,38897.0,0.12679372]
[1645877156495,0.62385242,38903.0,38889.0,0.01027]
[1645877156698,0.68817342,38903.0,38889.0,0.01027]
[1645877156896,0.32385242,38901.0,38889.0,0.01027]
[1645877157298,0.62385242,38900.0,38889.0,0.01027]
[1645877157697,0.32385242,38897.0,38889.0,0.01027]
[1645877157894,0.67525242,38896.0,38889.0,0.01027]
[1645877158095,0.67525242,38896.0,38889.0,0.01327]
[1645877158295,0.377772,38895.0,38889.0,0.003]
[1645877158494,0.14689,38895.0,38889.0,0.003]
[1645877158897,0.377772,38893.0,38892.0,0.12786956]
[1645877159096,0.01027,38894.0,38892.0,0.12786956]
[1645877159548,0.0514,38895.0,38892.0,0.12786956]
[1645877159953,0.0514,38895.0,38883.0,0.3]
[1645877159954,0.377772,38893.0,38883.0,0.3]
[1645877160152,0.0514,38895.0,38889.0,0.0002897]
[1645877160349,0.388042,38894.0,38889.0,0.0002897]
[1645877161051,0.388042,38894.0,38890.0,0.14055031]
[1645877161453,0.388042,38894.0,38889.0,0.00028969]
[1645877161848,0.01027,38894.0,38889.0,0.00028969]
[1645877162049,0.01227,38894.0,38889.0,0.00028969]
[1645877162453,0.377772,38893.0,38889.0,0.15042562]
[1645877162651,0.377772,38893.0,38889.0,0.15071531]
[1645877163693,0.377772,38893.0,38889.0,0.15042562]
[1645877163894,0.377772,38893.0,38889.0,0.15071531]
[1645877165993,0.379772,38893.0,38889.0,0.15042562]
[1645877166192,0.379772,38893.0,38889.0,0.15071531]
[1645877166394,0.064334,38894.0,38893.0,0.27345895]
[1645877166593,0.467842,38894.0,38893.0,0.27345895]
[1645877167049,0.767842,38894.0,38893.0,0.27345895]
[1645877167252,0.878112,38894.0,38893.0,0.21930797]
[1645877167653,1.79594513,38894.0,38893.0,0.21930797]
[1645877167854,2.22388295,38894.0,38893.0,0.21930797]
[1645877168049,2.22488295,38894.0,38893.0,0.21930797]
[1645877168250,1.88898586,38894.0,38893.0,0.21930797]
[1645877168449,1.99585302,38894.0,38893.0,0.21930797]
[1645877168651,1.21305506,38894.0,38893.0,0.21930797]
[1645877168850,1.54338725,38894.0,38893.0,0.21930797]
[1645877169251,1.21305973,38894.0,38893.0,0.21930797]
[1645877169453,1.99585973,38894.0,38893.0,0.21930797]
[1645877169654,1.21205973,38894.0,38893.0,0.21930797]
[1645877169853,1.20178973,38894.0,38893.0,0.21930797]
[1645877170055,1.21205973,38894.0,38893.0,7.97e-06]
[1645877170258,1.21205973,38894.0,38889.0,9.7e-06]
[1645877170259,0.02567,38891.0,38889.0,9.7e-06]
[1645877170455,1.9452926,38890.0,38889.0,9.7e-06]
[1645877170699,1.9452926,38890.0,38881.0,0.05]
[1645877170700,0.7828,38884.0,38881.0,0.05]
[1645877170899,0.7828,38884.0,38880.0,0.0031]
[1645877170900,1.35067725,38882.0,38880.0,0.0031]
[1645877171198,1.537708,38881.0,38880.0,0.0001]
[1645877171800,0.854908,38881.0,38880.0,0.0001]
[1645877172000,0.854908,38881.0,38873.0,0.0011]
[1645877172200,0.377838,38878.0,38872.0,0.0621]
[1645877172601,0.377838,38878.0,38872.0,0.062002]
[1645877173000,0.08,38877.0,38872.0,0.062002]
[1645877173200,0.08,38873.0,38872.0,0.062002]
[1645877173402,0.377838,38878.0,38874.0,0.49979194]
[1645877174362,0.52883092,38878.0,38874.0,0.49979194]
[1645877174556,0.52883092,38878.0,38874.0,0.50008167]
[1645877174557,1.63730092,38878.0,38874.0,0.50008167]
[1645877174758,0.377838,38878.0,38874.0,0.50008167]
[1645877174958,0.377838,38878.0,38874.0,0.49582562]
[1645877175557,0.1514,38881.0,38874.0,0.49553589]
[1645877175558,0.0514,38881.0,38874.0,0.49553589]
[1645877175762,0.1,38884.0,38876.0,0.377838]
[1645877175959,0.1,38884.0,38877.0,0.60159041]
[1645877176157,0.001,38883.0,38877.0,0.377838]
[1645877176459,0.001,38883.0,38877.0,0.438738]
[1645877176756,0.001,38883.0,38879.0,0.377838]
[1645877177156,0.001,38883.0,38881.0,0.52577759]
[1645877177356,0.1147,38894.0,38881.0,0.52577759]
[1645877177556,0.51491227,38895.0,38883.0,0.377838]
[1645877177557,0.1912,38895.0,38883.0,0.377838]
[1645877177757,0.1912,38895.0,38882.0,0.22397738]
[1645877177758,0.1912,38895.0,38882.0,0.22374943]
[1645877177960,0.1912,38895.0,38881.0,0.14793959]
[1645877178199,0.1912,38895.0,38887.0,0.0002897]
[1645877178594,0.3,38894.0,38887.0,0.14999743]
[1645877178794,0.62371227,38894.0,38887.0,0.14999743]
[1645877179295,0.62371227,38894.0,38887.0,0.14970773]
[1645877179594,0.62371227,38894.0,38887.0,0.14999743]
[1645877179795,0.3,38894.0,38887.0,0.14999743]
[1645877179996,0.3,38894.0,38887.0,0.15199743]
[1645877180195,0.6240019,38896.0,38887.0,0.15199743]
[1645877180399,0.32371227,38895.0,38887.0,0.15170773]
[1645877180602,0.64938227,38894.0,38887.0,0.0022897]
[1645877180796,1.43218227,38894.0,38887.0,0.0022897]
[1645877181196,0.06434,38892.0,38887.0,0.0022897]
[1645877181399,0.36434,38892.0,38887.0,0.0002897]
[1645877181597,0.36434,38892.0,38885.0,0.16184299]
[1645877181845,0.36434,38892.0,38887.0,0.0002897]
[1645877182044,0.36634,38892.0,38887.0,0.0002897]
[1645877182346,0.02567,38889.0,38887.0,0.0002897]
[1645877182548,0.403508,38888.0,38887.0,0.0002897]
[1645877182745,0.02567,38888.0,38887.0,0.0002897]
[1645877183046,0.80847,38887.0,38886.0,0.00017572]
[1645877183249,0.064346,38888.0,38886.0,0.00017572]
[1645877183446,0.35965227,38891.0,38886.0,0.00017572]
[1645877183646,0.46925587,38891.0,38886.0,0.00017572]
[1645877183845,0.06027,38891.0,38886.0,0.00017572]
[1645877184044,0.06027,38891.0,38880.0,0.3]
[1645877184244,0.03594,38891.0,38879.0,0.13089563]
[1645877184444,0.100281,38891.0,38879.0,0.13089563]
[1645877184645,0.03594,38891.0,38885.0,0.16550191]
[1645877184845,0.01027,38891.0,38885.0,0.16550191]
[1645877185446,0.33398227,38891.0,38885.0,0.16550191]
[1645877186689,0.33598227,38891.0,38885.0,0.16550191]
[1645877186889,0.40032427,38891.0,38885.0,0.16550191]
[1645877187291,0.53559787,38891.0,38875.0,0.4157]
[1645877187492,0.53559787,38891.0,38875.0,0.3]
[1645877187891,0.53559787,38891.0,38881.0,0.00028971]
[1645877188092,0.074612,38891.0,38881.0,0.00028971]
[1645877188291,0.074612,38891.0,38882.0,0.14950338]
[1645877188494,0.377838,38890.0,38882.0,0.14950338]